bitfinex-derivatives/quotes_ETHF0:USTF0_20240917
["timestamp","ask_amount","ask_price","bid_price","bid_amount"]
[1726579478748,4.152,2329.5,2329.2,0.42935]
[1726579478938,0.42928,2329.6,2329.3,0.4706]
[1726579479141,0.9763,2329.7,2329.0,3.2078]
[1726579479142,0.42932,2329.4,2329.0,3.2078]
[1726579479342,0.42933,2329.3,2329.0,3.6784]
[1726579479846,0.42934,2329.3,2329.0,3.6784]
[1726579480147,1.07324,2329.5,2329.0,3.6784]
[1726579480339,0.42936,2329.2,2329.0,3.6784]
[1726579481041,0.42937,2329.1,2329.0,3.6784]
[1726579481246,0.42936,2329.2,2329.0,3.6784]
[1726579481448,0.42937,2329.1,2329.0,3.6784]
[1726579481654,0.9763,2329.7,2328.7,0.4922]
[1726579481655,3.2078,2329.3,2328.7,0.4922]
[1726579481955,0.42941,2328.9,2328.7,0.958]
[1726579482149,0.42944,2328.7,2328.6,3.2078]
[1726579482346,3.2078,2329.0,2328.3,1.414]
[1726579482347,0.42946,2328.6,2328.3,1.414]
[1726579482741,0.42945,2328.7,2328.3,1.414]
[1726579482945,4.28131,2329.0,2328.3,1.414]
[1726579483146,0.42946,2328.6,2328.3,1.414]
[1726579483752,0.42945,2328.7,2328.3,1.414]
[1726579483959,4.28131,2329.0,2328.3,1.414]
[1726579483960,0.42946,2328.6,2328.3,1.414]
[1726579484156,3.2078,2329.0,2328.3,0.947]
[1726579484356,0.4295,2328.4,2328.3,0.4658]
[1726579484555,3.2078,2328.7,2327.9,3.6812]
[1726579484752,0.42951,2328.4,2328.3,0.479]
[1726579486354,1.0737,2328.5,2327.9,3.6812]
[1726579486551,0.42953,2328.3,2327.9,4.1602]
[1726579486857,0.42952,2328.3,2327.9,4.58978]
[1726579487662,0.42954,2328.2,2327.9,4.1602]
[1726579487850,1.0737,2328.5,2327.9,4.1602]
[1726579487851,0.42952,2328.3,2327.9,4.58979]
[1726579488155,1.0737,2328.5,2327.9,4.58979]
[1726579488357,0.42954,2328.2,2327.9,4.1602]
[1726579488550,0.42954,2328.2,2327.9,4.58978]
[1726579488946,0.42954,2328.2,2327.9,4.1602]
[1726579489153,0.42955,2328.2,2327.9,4.1602]
[1726579489350,0.42956,2328.1,2327.9,3.6868]
[1726579489550,0.42955,2328.2,2327.9,3.6868]
[1726579489748,1.07381,2328.3,2327.9,0.479]
[1726579489952,0.42957,2328.0,2327.9,0.479]
[1726579491154,4.72557,2328.0,2327.9,0.479]
[1726579491349,0.42957,2328.0,2327.9,0.479]
[1726579491854,1.07389,2328.1,2327.6,3.2078]
[1726579492162,0.42961,2327.8,2327.6,0.4963]
[1726579492363,0.4296,2327.9,2327.6,0.92594]
[1726579493050,0.42961,2327.8,2327.6,0.4963]
[1726579493753,0.42963,2327.7,2327.6,0.4963]
[1726579494750,4.72563,2327.7,2327.6,0.4963]
[1726579494957,1.07416,2327.5,2327.0,3.63755]
[1726579495160,1.07416,2327.5,2327.1,0.42973]
[1726579495359,0.4297,2327.4,2327.1,0.42973]
[1726579495656,1.07416,2327.5,2327.1,0.42973]
[1726579495856,0.42971,2327.3,2327.0,0.93135]
[1726579496055,0.42971,2327.3,2327.1,0.42973]
[1726579496361,0.42965,2327.6,2327.1,8.67114]
[1726579496565,3.2078,2327.7,2327.2,1.07429]
[1726579496861,3.2078,2327.7,2327.6,0.42964]
[1726579497161,0.42964,2327.6,2327.3,3.2078]
[1726579497364,3.63743,2327.7,2327.5,0.42965]
[1726579497569,3.63743,2327.7,2327.6,0.4679]
[1726579497861,4.7115,2327.7,2327.6,0.4679]
[1726579498657,0.42966,2327.5,2327.4,0.498]
[1726579499057,3.63743,2327.7,2327.4,0.498]
[1726579499259,0.42966,2327.5,2327.4,0.498]
[1726579499857,3.2078,2327.7,2327.4,0.92767]
[1726579500067,0.4874,2328.0,2327.7,0.42963]
[1726579500068,1.07394,2328.0,2327.7,0.42963]
[1726579500365,3.2078,2328.2,2327.4,0.498]
[1726579500366,1.50357,2327.9,2327.8,0.4768]
[1726579500565,4.28165,2328.2,2327.7,0.42962]
[1726579500755,0.42957,2328.0,2327.8,0.4296]
[1726579500958,3.7024,2328.5,2327.7,3.2078]
[1726579501154,0.42954,2328.2,2328.0,0.42957]
[1726579501361,3.2078,2328.5,2328.1,0.4768]
[1726579501563,3.63729,2328.5,2328.3,0.4295]
[1726579501764,3.2078,2328.5,2328.4,0.4295]
[1726579501968,3.2078,2328.8,2328.2,0.4614]
[1726579502168,3.2078,2328.8,2328.4,0.42949]
[1726579502169,0.42948,2328.5,2328.4,0.42949]
[1726579502372,0.4295,2328.4,2328.2,0.89092]
[1726579502575,0.42951,2328.3,2328.2,0.4614]
[1726579503064,0.42953,2328.2,2328.1,0.4768]
[1726579503270,0.42953,2328.3,2328.1,0.90634]
[1726579503458,0.42953,2328.2,2328.1,0.4768]
[1726579503958,1.50337,2328.2,2328.1,0.4768]
[1726579504159,1.07391,2328.1,2327.8,3.2078]
[1726579504366,1.07393,2328.0,2327.6,0.9613]
[1726579504565,0.42963,2327.7,2327.6,0.9613]
[1726579504866,0.42962,2327.8,2327.6,0.9613]
[1726579505368,0.42962,2327.8,2327.6,1.39094]
[1726579505666,1.07393,2328.0,2327.6,0.9613]
[1726579505869,0.42963,2327.7,2327.6,0.9613]
[1726579506970,0.42961,2327.8,2327.6,1.39093]
[1726579507559,1.07395,2328.0,2327.6,1.39093]
[1726579507866,3.2078,2328.2,2327.6,0.9613]
[1726579508065,0.42963,2327.7,2327.6,0.9613]
[1726579509064,0.4296,2327.9,2327.6,0.9613]
[1726579509262,1.07389,2328.1,2327.6,0.9613]
[1726579509569,0.4296,2327.9,2327.6,1.39093]
[1726579509772,0.4296,2327.9,2327.7,0.42962]
[1726579509971,0.42961,2327.8,2327.6,1.39093]
[1726579510266,0.4296,2327.9,2327.7,0.42963]
[1726579510475,1.07393,2328.0,2327.6,0.9613]
[1726579510659,1.07389,2328.1,2327.6,0.9613]
[1726579510660,0.42962,2327.8,2327.6,0.9613]
[1726579510860,0.42962,2327.8,2327.6,1.39094]
[1726579511072,0.42963,2327.7,2327.6,1.39094]
[1726579511259,1.07398,2327.9,2327.6,1.39094]
[1726579511260,0.42962,2327.8,2327.6,1.39094]
[1726579511567,1.07389,2328.1,2327.6,1.39094]
[1726579511568,1.07389,2328.1,2327.8,0.42961]
[1726579511773,0.42963,2327.7,2327.6,0.9613]
[1726579511964,1.5037,2327.7,2327.6,0.9613]
[1726579512364,1.5037,2327.7,2327.2,3.2078]
[1726579512365,1.07412,2327.6,2327.2,3.2078]
[1726579512585,1.50389,2327.4,2327.3,0.463]
[1726579512769,1.50389,2327.4,2327.1,0.4684]
[1726579512770,0.42972,2327.2,2327.1,0.4684]
[1726579513077,1.07427,2327.3,2326.8,0.89278]
[1726579513261,1.07427,2327.3,2326.8,0.463]
[1726579513262,1.0743,2327.2,2326.8,0.463]
[1726579513457,1.07425,2327.3,2326.8,0.89279]
[1726579513857,0.42974,2327.1,2326.8,0.89279]
[1726579514262,0.42974,2327.1,2326.9,0.42977]
[1726579514858,1.07425,2327.3,2326.8,0.89278]
[1726579515063,0.42975,2327.1,2326.8,0.89278]
[1726579515264,1.07425,2327.3,2326.8,0.89278]
[1726579515265,0.42976,2327.0,2326.8,0.89278]
[1726579515465,0.42977,2326.9,2326.8,0.463]
[1726579515667,7.452,2327.6,2326.7,0.4684]
[1726579515668,0.42979,2326.8,2326.7,0.4684]
[1726579515862,4.2821,2327.2,2326.4,0.4589]
[1726579515863,0.42982,2326.7,2326.4,0.4589]
[1726579516068,4.2821,2327.2,2326.4,0.4589]
[1726579516069,0.42984,2326.6,2326.4,0.4589]
[1726579516673,0.42985,2326.5,2326.4,0.4589]
[1726579517071,0.42984,2326.6,2326.4,0.4589]
[1726579517279,0.951,2327.1,2326.4,0.4589]
[1726579517280,0.42982,2326.7,2326.4,0.4589]
[1726579517471,0.42984,2326.6,2326.4,0.4589]
[1726579517776,0.4876,2326.8,2326.4,0.4589]
[1726579517972,0.42983,2326.6,2326.4,0.4589]
[1726579518276,0.4876,2326.8,2326.4,0.4589]
[1726579518466,1.07444,2327.0,2326.4,0.4589]
[1726579518781,4.1588,2327.1,2326.5,0.42983]
[1726579518782,0.42978,2326.9,2326.5,0.42983]
[1726579519264,0.42978,2326.9,2326.6,0.496]
[1726579519469,0.42981,2326.7,2326.6,0.496]
[1726579519884,0.4298,2326.8,2326.6,0.496]
[1726579520088,0.42979,2326.9,2326.6,0.496]
[1726579520274,3.6754,2327.1,2326.6,0.496]
[1726579520573,3.6754,2327.1,2326.6,0.92581]
[1726579520781,0.42977,2327.0,2326.6,4.13361]
[1726579520971,0.4676,2327.1,2326.6,3.7038]
[1726579520972,0.42978,2326.9,2326.6,3.7038]
[1726579521173,0.42976,2327.0,2326.6,3.7038]
[1726579521376,0.4676,2327.1,2326.6,3.7038]
[1726579521573,0.4676,2327.1,2326.6,4.13362]
[1726579521574,0.42977,2326.9,2326.6,4.13362]
[1726579521874,1.07439,2327.0,2326.6,3.7038]
[1726579522071,0.42981,2326.8,2326.6,0.496]
[1726579522278,0.42981,2326.7,2326.6,0.496]
[1726579522485,3.6754,2327.1,2326.6,0.496]
[1726579522677,3.6754,2327.1,2326.6,0.92582]
[1726579522678,0.42979,2326.9,2326.6,0.92582]
[1726579523174,0.4298,2326.8,2326.6,0.496]
[1726579523378,3.6754,2327.1,2326.6,0.496]
[1726579523580,1.07439,2327.0,2326.6,0.496]
[1726579523778,0.42981,2326.7,2326.6,0.496]
[1726579523972,0.42985,2326.5,2326.4,0.4589]
[1726579524372,0.42984,2326.6,2326.4,0.4589]
[1726579524578,0.42985,2326.5,2326.4,0.4589]
[1726579526277,1.0746,2326.6,2326.1,0.496]
[1726579526472,0.42988,2326.4,2326.1,0.92591]
[1726579526781,1.5268,2326.6,2326.1,0.92591]
[1726579526971,0.42988,2326.4,2326.1,0.92591]
[1726579527172,0.42988,2326.4,2326.2,0.4299]
[1726579527372,0.42988,2326.4,2326.1,0.92591]
[1726579527597,0.42988,2326.4,2326.1,0.496]
[1726579527883,0.42988,2326.4,2326.2,0.4299]
[1726579528077,0.4879,2326.9,2326.2,3.2078]
[1726579528386,3.2078,2327.0,2326.6,0.42982]
[1726579528387,0.4298,2326.8,2326.6,0.42982]
[1726579528989,0.4298,2326.8,2326.6,1.36922]
[1726579529283,0.42981,2326.8,2326.6,1.36922]
[1726579529580,0.42981,2326.8,2326.7,0.42981]
[1726579529783,0.42979,2326.8,2326.7,0.42981]
[1726579529981,0.42981,2326.7,2326.6,0.9394]
[1726579530176,0.42981,2326.7,2326.6,1.36923]
[1726579530483,0.42981,2326.7,2326.6,0.9394]
[1726579530985,0.42981,2326.7,2326.6,1.36923]
[1726579531479,0.42981,2326.7,2326.6,0.9394]
[1726579531885,0.42981,2326.7,2326.6,0.4547]
[1726579532885,0.42987,2326.4,2326.3,0.4941]
[1726579533279,0.42987,2326.4,2326.2,3.2078]
[1726579533280,1.5046,2326.3,2326.2,3.2078]
[1726579533478,1.5046,2326.3,2326.1,0.4943]
[1726579533479,0.4299,2326.2,2326.1,0.4943]
[1726579534884,1.07473,2326.3,2325.9,0.4904]
[1726579535083,0.42994,2326.1,2325.9,0.92036]
[1726579535287,0.21539877,2326.4,2325.9,0.4904]
[1726579535490,1.07476,2326.2,2325.7,0.4882]
[1726579535787,0.42998,2325.8,2325.7,0.4882]
[1726579535976,1.07492,2325.9,2325.4,3.6837]
[1726579536175,0.43002,2325.6,2325.4,3.6837]
[1726579536381,0.4995,2325.8,2325.4,3.6837]
[1726579536687,0.43,2325.7,2325.4,4.11375]
[1726579537085,0.43,2325.7,2325.4,3.6837]
[1726579537278,0.43,2325.7,2325.4,4.11375]
[1726579538081,0.4995,2325.8,2325.4,3.2078]
[1726579538082,1.57447,2325.8,2325.4,3.2078]
[1726579538278,1.57447,2325.8,2325.3,0.4882]
[1726579538279,0.43005,2325.4,2325.3,0.4882]
[1726579538581,0.43005,2325.4,2325.0,0.4759]
[1726579538582,0.43006,2325.4,2325.0,0.4759]
[1726579538789,0.43006,2325.4,2325.0,0.9653]
[1726579538987,0.43007,2325.3,2325.0,1.39542]
[1726579539285,8.93427,2325.8,2325.0,0.9653]
[1726579539286,0.43011,2325.1,2325.0,0.9653]
[1726579539475,3.2078,2325.5,2324.9,3.2078]
[1726579539681,0.43012,2325.0,2324.9,3.2078]
[1726579539880,3.2078,2325.2,2324.7,0.4598]
[1726579540077,3.2078,2325.2,2324.6,3.2078]
[1726579540078,0.43017,2324.8,2324.6,3.2078]
[1726579540487,0.43016,2324.9,2324.6,3.2078]
[1726579540688,1.13206554,2325.2,2324.6,3.2078]
[1726579540888,0.43018,2324.7,2324.6,3.2078]
[1726579541084,0.43018,2324.7,2324.5,0.4894]
[1726579541085,0.43019,2324.7,2324.5,0.4894]
[1726579541286,0.43019,2324.7,2324.5,0.91962]
[1726579541588,0.43017,2324.8,2324.5,0.91962]
[1726579541787,0.43018,2324.7,2324.5,0.4894]
[1726579541977,0.43018,2324.7,2324.5,0.91961]
[1726579542176,0.43017,2324.8,2324.5,0.91961]
[1726579542792,1.07527,2325.1,2324.5,0.4894]
[1726579543084,0.43011,2325.1,2324.6,3.2078]
[1726579543281,0.43013,2325.0,2324.8,0.43015]
[1726579543477,0.43013,2325.0,2324.6,3.2078]
[1726579543681,0.43013,2325.0,2324.7,0.43016]
[1726579543881,0.43013,2325.0,2324.8,0.43015]
[1726579544081,0.43013,2325.0,2324.6,3.2078]
[1726579544082,0.43015,2324.9,2324.7,0.43018]
[1726579544487,0.43016,2324.8,2324.6,3.63798]
[1726579544890,1.07529,2325.1,2324.7,0.43018]
[1726579545191,0.43016,2324.8,2324.7,0.43018]
[1726579545390,0.43016,2324.8,2324.6,3.63799]
[1726579545796,0.43015,2324.9,2324.6,3.2078]
[1726579545987,0.43014,2325.0,2324.8,0.43015]
[1726579546294,1.53684,2325.2,2324.8,0.43015]
[1726579546496,1.07527,2325.1,2324.7,0.43017]
[1726579546786,0.43015,2324.9,2324.7,0.43016]
[1726579546994,1.75604214,2325.2,2324.8,0.43015]
[1726579547190,0.43014,2325.0,2324.6,3.2078]
[1726579547388,0.43014,2325.0,2324.8,0.43015]
[1726579547597,4.58208,2325.3,2324.9,3.2078]
[1726579547898,8.04101,2325.7,2325.0,0.43012]
[1726579547899,0.43009,2325.2,2325.0,0.43012]
[1726579548087,0.43009,2325.2,2325.1,0.4756]
[1726579548583,1.50532,2325.2,2325.1,0.4756]
[1726579548889,0.43009,2325.2,2325.1,0.4756]
[1726579549487,0.43012,2325.0,2324.9,2.6643]
[1726579549892,0.43012,2325.1,2324.9,3.09444]
[1726579551183,0.43012,2325.0,2324.9,0.4565]
[1726579551389,0.43012,2325.1,2324.9,0.88664]
[1726579551584,0.43012,2325.0,2324.9,0.4565]
[1726579551989,1.28926481,2325.2,2324.9,0.4565]
[1726579551990,0.43012,2325.1,2324.9,0.4565]
[1726579552193,0.43012,2325.0,2324.9,0.4565]
[1726579552586,1.50544,2325.0,2324.9,0.4565]
[1726579552899,0.43016,2324.9,2324.7,0.90577]
[1726579553295,0.43016,2324.8,2324.7,0.4756]
[1726579553495,0.43016,2324.9,2324.7,0.90578]
[1726579553797,0.43016,2324.8,2324.7,0.90578]
[1726579554095,0.43016,2324.8,2324.7,0.4756]
[1726579554300,0.43015,2324.9,2324.7,0.90576]
[1726579554902,0.43015,2324.9,2324.8,0.43016]
[1726579555198,0.43014,2325.0,2324.7,0.4756]
[1726579555397,0.43014,2325.0,2324.8,0.43015]
[1726579555588,0.43014,2324.9,2324.8,0.43015]
[1726579555790,0.43013,2325.0,2324.8,0.43015]
[1726579555991,0.43013,2325.0,2324.8,0.43016]
[1726579556201,0.43011,2325.1,2324.9,0.43014]
[1726579556396,0.43012,2325.0,2324.9,0.43014]
[1726579556599,0.43012,2325.0,2324.7,0.4756]
[1726579556914,1.07523,2325.2,2324.8,0.88705]
[1726579557110,0.43013,2325.0,2324.8,0.88705]
[1726579557405,0.43013,2325.0,2324.9,0.43014]
[1726579557616,0.43009,2325.2,2324.9,0.43014]
[1726579558593,0.43009,2325.2,2325.0,0.4515]
[1726579559391,0.48,2325.4,2325.0,0.4515]
[1726579559702,0.48,2325.4,2325.0,3.6593]
[1726579559905,0.43007,2325.3,2325.1,0.4622]
[1726579560497,0.48,2325.4,2325.1,0.4622]
[1726579560498,0.43006,2325.4,2325.1,0.8923]
[1726579560704,0.43008,2325.3,2325.1,0.4622]
[1726579560899,4.77829,2325.5,2325.1,0.4622]
[1726579561095,4.13324,2325.5,2325.2,0.43008]
[1726579561291,0.43001,2325.7,2325.4,0.43004]
[1726579561492,1.07495,2325.8,2325.5,0.9352]
[1726579561704,0.43,2325.7,2325.5,0.9352]
[1726579561905,0.42997,2325.9,2325.6,0.43001]
[1726579562101,1.40414,2326.0,2325.7,0.42998]
[1726579562402,0.42996,2325.9,2325.7,5.8978]
[1726579563104,0.42994,2326.0,2325.7,6.32778]
[1726579563406,1.54887,2326.2,2325.7,6.32778]
[1726579563601,0.42995,2326.0,2325.7,6.32778]
[1726579563905,0.42995,2326.0,2325.7,3.63778]
[1726579564203,0.42997,2325.9,2325.7,3.2078]
[1726579564796,0.42997,2325.9,2325.7,3.63779]
[1726579564998,1.07482,2326.1,2325.7,3.2078]
[1726579565197,0.42997,2325.9,2325.6,0.43]
[1726579565397,0.42998,2325.8,2325.6,0.43001]
[1726579565997,0.42998,2325.8,2325.5,0.9352]
[1726579566396,1.07486,2326.0,2325.5,0.9352]
[1726579566397,3.2078,2326.0,2325.5,0.9352]
[1726579566603,0.42995,2326.0,2325.5,1.36521]
[1726579566807,0.42996,2325.9,2325.5,1.36522]
[1726579567008,0.4741,2326.2,2325.5,0.9352]
[1726579567209,0.42995,2326.0,2325.6,0.43001]
[1726579567394,0.42996,2325.9,2325.5,1.36522]
[1726579567595,0.42995,2326.0,2325.6,0.43]
[1726579567802,0.4741,2326.2,2325.5,0.9352]
[1726579568009,0.4741,2326.2,2325.7,3.2078]
[1726579568507,0.4741,2326.2,2325.9,0.42995]
[1726579568701,0.4299,2326.2,2326.0,0.4759]
[1726579568897,3.2078,2326.3,2326.0,0.4759]
[1726579569300,0.42991,2326.2,2326.0,0.4759]
[1726579571705,3.2078,2326.3,2326.1,0.42991]
[1726579571905,0.4698,2326.5,2326.0,3.6837]
[1726579572112,0.42985,2326.5,2326.2,0.42989]
[1726579572314,0.42985,2326.5,2326.1,0.9484]
[1726579572315,1.07458,2326.6,2326.1,0.4704]
[1726579572516,0.42991,2326.2,2326.0,0.4759]
[1726579572812,1.29368179,2326.2,2325.7,3.6782]
[1726579573001,0.42995,2326.0,2325.7,4.10819]
[1726579573510,1.07477,2326.2,2325.7,3.6782]
[1726579573810,0.42993,2326.1,2325.7,4.10818]
[1726579574005,0.42994,2326.0,2325.7,4.10818]
[1726579574601,1.07477,2326.2,2325.7,4.10818]
[1726579574812,0.42995,2326.0,2325.7,4.10818]
[1726579575007,1.07477,2326.2,2325.7,3.6782]
[1726579575008,0.42997,2325.9,2325.7,3.6782]
[1726579575215,0.4642,2325.9,2325.7,3.2078]
[1726579575407,0.89417,2325.9,2325.7,3.2078]
[1726579575715,0.42998,2325.8,2325.7,3.2078]
[1726579575907,0.89417,2325.9,2325.7,3.2078]
[1726579576414,0.4642,2325.9,2325.7,3.2078]
[1726579576612,3.2078,2326.2,2325.7,3.2078]
[1726579576808,1.53893,2326.3,2325.8,0.4858]
[1726579577011,0.42993,2326.1,2325.8,0.4858]
[1726579577207,1.53893,2326.3,2325.7,3.2078]
[1726579577413,0.42993,2326.1,2325.7,3.2078]
[1726579577608,1.53893,2326.3,2325.7,3.2078]
[1726579577814,0.4642,2326.3,2325.7,3.63778]
[1726579578121,0.4642,2326.3,2325.9,0.42995]
[1726579578317,0.9393,2326.4,2325.7,8.54796]
[1726579578614,0.4855,2326.6,2326.2,0.42989]
[1726579578918,0.91533,2326.6,2326.2,0.4299]
[1726579580819,0.91534,2326.6,2326.2,0.4299]
[1726579581216,0.42985,2326.5,2326.2,0.4299]
[1726579582023,0.4855,2326.6,2326.2,0.4299]
[1726579582225,0.91534,2326.6,2326.3,0.42987]
[1726579582413,0.4855,2326.6,2326.3,3.2078]
[1726579582726,0.91533,2326.6,2326.3,3.63767]
[1726579582927,0.42986,2326.5,2326.3,3.2078]
[1726579583131,0.4855,2326.6,2326.3,3.2078]
[1726579583319,0.42987,2326.4,2326.1,1.38001]
[1726579584218,0.64644902,2326.5,2326.2,0.4299]
[1726579584422,0.4855,2326.6,2326.1,0.9501]
[1726579584726,0.42985,2326.5,2326.2,3.6377]
[1726579584922,0.4855,2326.6,2326.2,3.6377]
[1726579585115,0.42986,2326.5,2326.2,3.6377]
[1726579585520,0.4855,2326.6,2326.2,3.6377]
[1726579585929,0.42986,2326.5,2326.2,3.6377]
[1726579586228,0.42987,2326.4,2326.2,3.6377]
[1726579586620,0.42984,2326.6,2326.3,0.42987]
[1726579586819,0.42982,2326.7,2326.4,0.42986]
[1726579587024,0.472,2326.9,2326.4,0.42986]
[1726579587025,0.472,2326.9,2326.5,3.6656]
[1726579587227,0.472,2326.9,2326.6,0.90841]
[1726579587228,0.90179,2326.9,2326.6,0.90841]
[1726579587630,0.90179,2326.9,2326.7,0.42981]
[1726579587831,0.90179,2326.9,2326.6,0.90841]
[1726579588036,0.42979,2326.8,2326.6,0.4786]
[1726579588236,0.42979,2326.8,2326.6,0.90842]
[1726579588429,0.472,2326.9,2326.6,0.90842]
[1726579589338,0.90178,2326.9,2326.6,0.4786]
[1726579589541,0.42979,2326.8,2326.6,0.4786]
[1726579589729,0.90179,2326.9,2326.6,0.4786]
[1726579590339,0.472,2326.9,2326.6,0.90842]
[1726579594141,0.90178,2326.9,2326.6,0.90842]
[1726579594632,0.90178,2326.9,2326.6,0.90841]
[1726579595641,0.472,2326.9,2326.7,0.4298]
[1726579595834,0.472,2326.9,2326.6,0.4786]
[1726579595835,0.42974,2327.1,2326.9,0.42977]
[1726579596033,0.42974,2327.1,2326.8,3.63758]
[1726579596234,1.86582,2327.2,2326.8,3.2078]
[1726579596434,1.07421,2327.5,2326.9,3.1589]
[1726579596640,2.89251397,2327.7,2327.2,1.0743]
[1726579596641,0.21251397,2327.7,2327.2,1.0743]
[1726579596835,0.21251397,2327.7,2327.1,5.8878]
[1726579596836,9.303,2327.9,2327.5,2.68]
[1726579597036,9.303,2327.9,2327.7,5.8878]
[1726579597342,1.87074,2328.2,2327.9,0.42958]
[1726579597542,2.08666819,2328.2,2327.9,0.42958]
[1726579597843,0.42955,2328.1,2327.8,1.37739]
[1726579598038,1.87075,2328.2,2327.9,0.42959]
[1726579598237,4.152,2328.4,2327.8,3.6278]
[1726579598437,0.42952,2328.3,2327.9,0.42958]
[1726579598844,1.62403494,2328.4,2328.0,0.42956]
[1726579599042,1.62403494,2328.4,2328.0,0.42957]
[1726579599043,0.21373494,2328.4,2328.0,0.42957]
[1726579599241,0.42953,2328.3,2327.9,0.42958]
[1726579599639,0.42953,2328.3,2328.0,0.42957]
[1726579600339,0.42953,2328.3,2327.9,0.42958]
[1726579600744,0.42951,2328.3,2327.9,0.42958]
[1726579601237,0.42954,2328.2,2327.8,1.37739]
[1726579601439,4.74122,2328.5,2327.8,1.37739]
[1726579601636,0.42954,2328.2,2327.8,1.37739]
[1726579602050,0.42955,2328.1,2327.8,0.9478]
[1726579602248,0.42954,2328.2,2327.8,1.37741]
[1726579602449,0.42955,2328.1,2327.8,1.37741]
[1726579603336,0.42955,2328.1,2327.8,0.9478]
[1726579603541,1.07381,2328.3,2327.8,0.9478]
[1726579603741,0.42958,2328.0,2327.8,0.9478]
[1726579604152,0.42956,2328.1,2327.8,1.3774]
[1726579604555,3.2078,2328.2,2327.8,0.9478]
[1726579604739,1.07398,2327.9,2327.5,0.4663]
[1726579604945,3.75398,2327.9,2327.5,1.35895]
[1726579605246,0.42963,2327.7,2327.5,1.35895]
[1726579605447,0.42963,2327.7,2327.5,0.9293]
[1726579605646,0.42963,2327.7,2327.5,1.35896]
[1726579606249,0.42963,2327.7,2327.5,0.9293]
[1726579606454,0.42963,2327.7,2327.5,1.35896]
[1726579606961,3.75398,2327.9,2327.5,1.35896]
[1726579607346,0.42964,2327.7,2327.5,1.35896]
[1726579607650,0.42964,2327.6,2327.5,1.35896]
[1726579607850,0.42964,2327.7,2327.6,0.42964]
[1726579608051,0.42964,2327.7,2327.5,0.9293]
[1726579608052,0.42964,2327.6,2327.5,1.35896]
[1726579608362,0.42964,2327.7,2327.5,1.35896]
[1726579608749,1.07398,2327.9,2327.5,1.35896]
[1726579609061,0.42964,2327.6,2327.5,1.35896]
[1726579610256,1.07402,2327.8,2327.7,0.42962]
[1726579610257,0.42962,2327.8,2327.7,0.42962]
[1726579610459,0.42962,2327.8,2327.7,0.42963]
[1726579610858,0.42963,2327.7,2327.6,0.42963]
[1726579611359,0.42963,2327.7,2327.5,0.9293]
[1726579611360,0.42959,2327.9,2327.8,0.4296]
[1726579612250,0.42956,2328.1,2328.0,0.42955]
[1726579613550,1.4286,2328.4,2327.8,4.2061]
[1726579613754,0.4295,2328.4,2328.3,0.4295]
[1726579614460,0.42947,2328.6,2328.5,0.42948]
[1726579614655,1.07353,2328.9,2328.3,3.2078]
[1726579614856,0.42948,2328.5,2328.4,0.42948]
[1726579615059,0.21355066,2328.9,2328.3,4.1324]
[1726579615060,1.07363,2328.7,2328.3,4.1324]
[1726579615251,0.42948,2328.5,2328.4,0.4295]
[1726579615860,0.42947,2328.6,2328.4,0.4295]
[1726579616159,0.42947,2328.6,2328.3,4.1324]
[1726579617261,2.68,2328.5,2328.1,0.9411]
[1726579617465,0.42952,2328.3,2328.1,0.9411]
[1726579618673,0.42953,2328.3,2328.1,0.9411]
[1726579619260,1.0737,2328.5,2328.1,1.37064]
[1726579619465,0.42952,2328.3,2328.2,0.42953]
[1726579619765,0.42952,2328.3,2328.1,1.37064]
[1726579619957,0.42952,2328.3,2328.2,0.42953]
[1726579620362,0.42952,2328.3,2327.5,3.4238]
[1726579620363,16.183,2328.3,2327.5,3.4238]
[1726579620557,16.183,2328.3,2326.6,2.1491]
[1726579620558,0.42963,2327.7,2327.6,0.488]
[1726579621563,1.5037,2327.7,2327.6,0.488]
[1726579621765,0.42968,2327.4,2327.3,0.468]
[1726579622664,0.42968,2327.5,2327.3,0.89769]
[1726579622965,0.42968,2327.5,2327.3,0.89768]
[1726579622966,0.42966,2327.5,2327.3,0.89768]
[1726579623472,0.42966,2327.6,2327.4,0.42968]
[1726579623664,1.07403,2327.8,2327.4,0.42968]
[1726579623665,0.42966,2327.5,2327.4,0.42968]
[1726579623876,0.42966,2327.6,2327.4,0.42968]
[1726579624171,0.42963,2327.7,2327.6,0.42964]
[1726579624561,0.42962,2327.8,2327.6,0.42964]
[1726579624763,0.42962,2327.8,2327.7,0.4805]
[1726579625258,0.42964,2327.6,2327.5,0.42966]
[1726579625463,0.42965,2327.6,2327.4,0.42967]
[1726579625666,0.42965,2327.6,2327.5,0.42966]
[1726579626078,0.42964,2327.7,2327.5,0.42966]
[1726579626559,0.42964,2327.6,2327.5,0.42966]
[1726579626967,0.42964,2327.7,2327.5,0.42966]
[1726579627167,0.42964,2327.6,2327.5,0.42966]
[1726579627678,4.296,2327.6,2327.3,1.37818]
[1726579627866,4.296,2327.6,2327.3,0.4805]
[1726579627867,0.42968,2327.4,2327.3,0.4805]
[1726579628272,0.42968,2327.4,2327.3,0.9102]
[1726579629376,1.07405,2327.8,2327.4,0.42967]
[1726579629562,0.42967,2327.5,2327.4,0.42967]
[1726579630475,1.07403,2327.8,2327.5,0.42964]
[1726579630774,0.42965,2327.6,2327.5,0.42965]